Workbook

Sheet Index
B2: INFORMATION DISCLOSURE REQUIREMENTS
C4: TABLE OF CONTENTS
C5: for the year ended 31 March 2017
B7: TYPE | C7: PROFORMA STATEMENT | D7: STATEMENT NUMBER | E7: PAGE
B8: Regulatory Financial Statements
C9: Income Statement | D9: RFS Inc | E9: 1
B11: Disaggregation Statements
C12: Income Statement | D12: DISAGG Inc | E12: 2
B14: Workpapers supporting the Disaggregation Statements:
C15: Operations and maintenance expenditure | D15: DISAGG Opex | E15: 3
C16: Causal allocations | D16: DISAGG Aloc1 | E16: 4
C17: Non-causal allocations | D17: DISAGG Aloc2 | E17: 7
B19: Prescribed Transmission Services
C20: Regulatory adjustment journals | D20: PTS Adj | E20: 8
C22: Price reduction/recovery | D22: PTS PriceRedn | E22: 9
C24: Discount | D24: PTS Disc | E24: 10
C26: Revenue analysis | D26: PTS Rev | E26: 11
B28: Asset schedules and supporting papers:
B29: Prescribed Transmission Services | C29: Asset Aging Schedule | D29: PTS Asset Aging | E29: 12
B31: Provisions Schedules:
B32: Disaggregation Statements | C32: Provisions Summary | D32: DISAGG ProvSum | E32: 13
C33: Provisions Reconciliation | D33: PTS ProvRec | E33: 14
B35: Other Information
C36: Related Party Transactions | D36: Inf Rel Part Trans | E36: 15
C37: Revenue Reconciliation | D37: Inf Rev Rec | E37: 16
B39: Non-financial Schedules
C40: Current Map of the Network | D40: NFS Curr Map Netw | E40: na
B42: Historic Operating Expenditure (Opex)
C43: Historic Opex by Category - Summary | D43: HOE Sum | E43: 17
B45: Historic Capital Expenditure (Capex)
C46: Historic Capex by Category | D46: HCE Cat | E46: 18
C47: Historic Capex by Asset Class | D47: HCE Ass Cls | E47: 19
C48: Historic Capex - Network | D48: HCE Netw | E48: 21
C49: Historic Capex - Non-Network | D49: HCE Non Netw | E49: 22
C50: Historic Capex - NCIPAP | D50: HCE NCIPAP | E50: 23

Sheet RFS Inc
A2: INCOME STATEMENT - PRESCRIBED TRANSMISSION SERVICES
A7: for the period ended: 31 March 2017
A9: Account code or reference to Account Code | C9: Description | D9: Disaggregation Statement - Prescribed Transmission Services | E9: Journal number | F9: Regulatory adjustments | G9: Regulatory financial statements | H9: Support reference
D10: $'000 | F10: $'000 | G10: $'000
F11: Dr/(Cr)
B12: REVENUE
B13: Network charges | D13: 535057.6302 | F13: 0 | G13: 535057.6302 | H13: DISAGG Inc
B14: Other Network Revenue | D14: 34182.84801 | F14: 0 | G14: 34182.84801 | H14: DISAGG Inc
B15: Gross proceeds from sale of assets | D15: 252 | G15: 252 | H15: DISAGG Inc
B16: Other Revenue | D16: 0 | G16: 0
B18: Total Revenue | D18: 569492.4783 | F18: 0 | G18: 569492.4783
B20: EXPENDITURE
B21: Opex costs
B22: - | C22: Network operations | D22: 6031.629577 | G22: 6031.629577 | H22: DISAGG Opex
B23: - | C23: Network maintenance | D23: 29882.14205 | G23: 29882.14205 | H23: DISAGG Opex
C24: Asset Works Maintenance | D24: 7514.953423 | E24: 1 | F24: -542.4558 | G24: 6972.497623 | H24: DISAGG Opex
B25: - | C25: Other costs | G25: 0
C26: - Availability Rebate | D26: 165.99245 | G26: 165.99245 | H26: DISAGG Opex
C27: - Easement Tax | D27: 111322.94 | G27: 111322.94 | H27: DISAGG Opex
C28: - Insurance | D28: 4304.612992 | G28: 4304.612992 | H28: DISAGG Opex
C29: - Other Taxes and Charges | D29: 4571.74304 | G29: 4571.74304 | H29: DISAGG Opex
C30: - Self Insurance Costs | D30: 0 | E30: 2 | F30: 1702.246154 | G30: 1702.246154 | H30: PTS Adj
C31: - Other Costs | D31: 34011.36511 | G31: 34011.36511 | H31: DISAGG Opex
B32: - NCIPAP Opex | D32: 323.65944 | G32: 323.65944 | H32: DISAGG Opex
B33: Depreciation | D33: 98187.12391 | E33: 3 | F33: 17971.39904 | G33: 116158.5229
B34: Book value of assets disposed | D34: 2370.65283 | G34: 2370.65283
G35: 0
B36: Total Expenditure | D36: 298686.8148 | F36: 19131.18939 | G36: 317818.0042
B38: Earnings before Interest and Tax (EBIT) | D38: 270805.6634 | F38: -19131.18939 | G38: 251674.474
B42: Taxation
A45: Note: Totals may not add due to rounding.
A48: Note:
A49: In addition it is mandatory to produce for each cost or revenue item that has been allocated to the Prescribed Services Segment a supporting workpaper that includes the following:
A50: a) the amounts that have been directly attributed to the Prescribed Services Segment
A51: b) the amounts that have been allocated to each Prescribed Services Segment
A52: c) a description of the allocation basis
A53: d) the numeric quantity of each allocator.

Sheet DISAGG Inc
A2: DISAGGREGATION STATEMENT - INCOME
A7: for the period ended: 31 March 2017
A9: Account code or reference to Account Code | C9: Description | D9: Audited financial statements | F9: Prescribed Transmission Services | G9: Negotiated Transmission Services | H9: Non-Regulated Transmission Services | I9: Not Allocated | J9: Workpaper reference
D10: $'000 | F10: $'000 | G10: $'000 | H10: $'000 | I10: $'000
I11: 0
B12: Network charges | F12: 535057.6302 | G12: 0 | H12: 0
B13: Other Network Revenue | F13: 34182.84801 | G13: 15288.88514 | H13: 0 | I13: 0
B14: Gross proceeds from sale of assets | F14: 251.72245 | G14: 0 | H14: 0
B15: Other revenue | H15: 69241.87538 | I15: 0
B17: Total Revenue | F17: 569492.2007 | G17: 15288.88514 | H17: 69241.87538 | I17: 0
B19: Opex costs
B20: - | C20: Network operations | F20: 6031.629577 | J20: DISAGG Opex
B21: - | C21: Network Maintenance | F21: 29882.14205 | I21: 0 | J21: DISAGG Opex
B22: - | C22: Asset Works Maintenance | F22: 7514.953423 | I22: 0 | J22: DISAGG Opex
B23: - | C23: Other Costs
C24: - Availability Rebate | F24: 165.99245 | I24: 0 | J24: DISAGG Opex
C25: - Easement Tax | F25: 111322.94 | I25: 0 | J25: DISAGG Opex
C26: - Insurance | F26: 4304.612992 | J26: DISAGG Opex
C27: - Other Taxes and Charges | F27: 4571.74304 | J27: DISAGG Opex
C28: - Other Costs | F28: 34011.36511 | J28: DISAGG Opex
B29: NCIPAP Opex | F29: 323.65944 | J29: DISAGG Opex
B30: Depreciation | F30: 98187.12391
B31: Book value of assets disposed | F31: 2370.65283
B33: Total Expenditure
B35: Earnings before Interest and Tax (EBIT) | F35: 270805.3859
B37: Interest and dividend income | I37: 12772.40919
B38: Finance charges | I38: 96944.22584
B40: Profit(loss) before Income Tax Expense
B42: Australian income tax expense | I42: 69110.35896
B43: Deferred income tax
B44: Other income tax
B48: Profit(loss) after income tax expense
A50: 300304 | B50: Dividends paid | I50: 177550
B52: Retained Profit(Loss)
A55: Note: Totals may not add due to rounding.
A56: * Where the disclosures in the Regulatory Accounts template align with the audited statutory financial statements, the figures are sourced from the audited statutory financial statements. Where this is not possible, the figures are sourced from the audited trial balance of the audited statutory financial statements.
A62: Note:
A63: In addition it is mandatory to produce for each cost or revenue item that has been allocated to the Prescribed Services Segment a supporting workpaper that includes the following:
A64: a) the amounts that have been directly attributed to the Prescribed Services Segment
A65: b) the amounts that have been allocated to the Prescribed Services Segment
A66: c) a description of the allocation basis
A67: d) the numeric quantity of each allocator.

Sheet DISAGG Opex
A2: OPERATIONS AND MAINTENANCE EXPENDITURE
A7: for the period ended: 31 March 2017
A9: Account code or reference to account code | D9: Account Heading | G9: Ticks to indicate which rows are intersegmental costs | I9: Prescribed Transmission Services | J9: Negotiated Transmission Services | K9: Non-Regulated Transmission Services | L9: Not Allocated | M9: Total
I10: $'000 | J10: $'000 | K10: $'000 | L10: $'000 | M10: $'000
D12: Directly Attributed Costs
D14: Network operations | E14: Operations Workcodes | I14: 0 | M14: 0
E15: Dedicated Responsibility Centres | I15: 6031.629577
D17: Network maintenance | E17: GL Accounts | I17: 700.60138
E18: Maintenance Workcodes | I18: 18568.02536
E19: Dedicated Responsibility Centres | I19: 136.0257548
D21: Network maintenance support | E21: GL Accounts | I21: 729.29313
E22: Maintenance Workcodes | I22: 0
D24: Asset Works maintenance | E24: Asset Works Work Codes | I24: 5375.35026
E25: Dedicated Responsibility Centres | I25: 546.8741529
D27: Network Capability Incentive Parameter Action Plan (NCIPAP) Opex | E27: Operations Workcodes | I27: 323.65944
D29: Other costs
D30: - Availability Rebate | E30: GL Account | I30: 165.99245
D31: - Easement Tax | E31: GL Account | I31: 111322.94
D32: - Insurance | E32: GL Account | I32: 4304.612992
D33: - Other Taxes and Charges | E33: GL Account | I33: 4571.74304
D34: - Other Costs
D35: - OHS | E35: Maintenance Workcodes | I35: 0
D36: - Listing & Share Registry | E36: GL Account
D37: - Non Regulated Service Work Codes/Cost Centre | E37: Work Codes | I37: 0
G40: Subtotal of Directly Attributed costs | I40: 152776.7475
D44: Allocated Costs | E44: Basis of allocation | G44: Work paper Ref.**
D45: Network maintenance - Support | E45: Causal | G45: DISAGG Aloc 1 | I45: 9748.19643
D46: Asset Works maintenance - Support | E46: Causal | G46: DISAGG Aloc 1 | I46: 1592.729011
D47: Other costs
D48: - OHS | E48: Causal | G48: DISAGG Aloc 1 | I48: 939.3087635
D49: - Finance | E49: Causal | G49: DISAGG Aloc 1 | I49: 4854.211464
D50: - HR | E50: Causal | G50: DISAGG Aloc 1 | I50: 2769.523209
D51: - IT | E51: Causal | G51: DISAGG Aloc 1 | I51: 11384.36487
D52: - Building Services | E52: Causal | G52: DISAGG Aloc 1 | I52: 1173.497809
D53: - Strategy and Business Development | E53: Causal | G53: DISAGG Aloc 1 | I53: 1692.337978
D54: - Other Corporate Services | E54: Causal | G54: DISAGG Aloc 1 | I54: 11198.12102
E56: Causal / Non- Causal*
G58: Subtotal of Allocated costs | I58: 45352.29055
G61: Total Opex Costs per DISAGG FPerf | I61: 198129.0381
L68: Total
A70: Note: Totals may not add due to rounding.

Sheet DISAGG Aloc1
A2: CAUSAL ALLOCATION
A7: for the period ended: 31 March 2017
A9: A copy of this workpaper is to be produced for each Causal basis that has been used to allocate costs between Business Segments.
B11: 1. Causal basis of allocation | D11: ABC Survey of dedicated Responsibility Centres: Corporate Costs
B13: 2. Complete the table set out below to indicate:
B14: - the Account Headings and the amounts subject to this Causal basis; and
B15: - the description and quanta of allocator that has been used
A17: Account code or reference to account code | B17: Account Heading | D17: Prescribed Transmission Services | E17: Negotiated Transmission Services | F17: Non-Regulated Transmission Services | G17: Not Allocated | H17: Total
D18: $'000 | E18: $'000 | F18: $'000 | G18: $'000 | H18: $'000
B19: For each Account Heading that has been
B20: allocated on this basis, provide the following information
B22: OH&S
B26: 12182 | C26: Health Safety Enviro and Quality
B27: Total OH&S
B28: ABC allocation % (average)
B30: Finance
B44: 12155 | C44: Taxation IR
B45: 12350 | C45: CES Finance
B46: 12351 | C46: Financial Planning
B47: 12356 | C47: Group Financial Control
B48: 12385 | C48: RES Finance
B49: 12516 | C49: Finance
B50: 12903 | C50: Treasury
B51: 13456 | C51: Billing and Receivables
B52: 13834 | C52: Shared Services
B54: Total Finance
B55: ABC allocation % (average)
B57: HR
B65: 12109 | C65: Corporate Relations
B66: 12305 | C66: People
B67: 12306 | C67: People & Safety
B68: 13245 | C68: Customer Services
B69: 13506 | C69: Support Services
B70: 13939 | C70: Customer Projects
B72: Total HR
B73: ABC allocation % (average)
B75: IT
B86: 12210 | C86: ICT Commercial
B87: 12212 | C87: Planning & Portfolio Services
B88: 12343 | C88: ICT Commercial Energy Services
B89: 12420 | C89: Digital & Innovation
B90: 12488 | C90: ICT Solutions & Delivery
B91: 12627 | C91: CIO Information Technology
B92: 12721 | C92: Enterprise Architecture
B93: 13331 | C93: Business Services
B94: 13404 | C94: ICT Enterprise Systems
B95: 13450 | C95: Infrastructure
B96: 13655 | C96: ICT Operations
B98: Total IT
B99: ABC allocation % (average)
B101: Building Services
B104: 13081 | C104: Property Services
B105: 13086 | C105: Building Services
B107: Total Building Services
B108: ABC allocation % (average)
B110: Strategy and Business Development
B111: 12348 | C111: Enterprise Prog Management Office
B112: 12349 | C112: Strategic Programs
B113: 12388 | C113: Strategy Business Development
B114: 12410 | C114: Business Development
B115: 12450 | C115: Workout
B116: 12569 | C116: Corporate Strategy
B117: 12570 | C117: EGM Strategy & Performance
B119: Total Strategy and Business Development
B120: ABC allocation % (average)
B122: Other Corporate Services
B142: 12103 | C142: Information Security
B143: 12109 | C143: Corporate Relations
B144: 12273 | C144: Risk Management & Security
B145: 12287 | C145: Risk & Assurance
B146: 12467 | C146: Legal & Company Secretary
B147: 12510 | C147: Managing Director
B148: 12597 | C148: Select Solutions
B149: 12603 | C149: Commercial and Contracts
B150: 12604 | C150: Emerging Energy Markets
B151: 12640 | C151: Asset Owner And Control
B152: 13330 | C152: Regulatory Frameworks
B153: 13456 | C153: Billing and Receivables
B154: 13882 | C154: Economic Regulation
B155: 12092 | C155: Asset Intelligence Development
B158: Total Other Corporate Services
B159: ABC allocation % (average)
B162: Total this Workpaper:
B168: 3. Provide a detailed description and explanation of the basis of allocation:
C171: Based on ABC Survey of dedicated Responsibility Centres.
A177: Note: Totals may not add due to rounding.

Sheet DISAGG Aloc1 (2)
A2: CAUSAL ALLOCATION
A7: for the period ended: 31 March 2017
A9: A copy of this workpaper is to be produced for each Causal basis that has been used to allocate costs between Business Segments.
B11: 1. Causal basis of allocation | D11: ABC Survey of dedicated Responsibility Centres:
D12: Network Maintenance Support & Asset Works Support
B13: 2. Complete the table set out below to indicate:
B14: - the Account Headings and the amounts subject to this Causal basis; and
B15: - the description and quanta of allocator that has been used
A17: Account code or reference to account code | B17: Account Heading | D17: Prescribed Transmission Services | E17: Negotiated Transmission Services | F17: Non-Regulated Transmission Services | G17: Not Allocated | H17: Total
D18: $'000 | E18: $'000 | F18: $'000 | G18: $'000 | H18: $'000
B19: For each Account Heading that has been
B20: allocated on this basis, provide the following information
B22: Network Maintenance Support & Asset Works Support
H23: =SUM(D23:G23) -> 0
H24: =SUM(D24:G24) -> 0
H25: =SUM(D25:G25) -> 0
H26: 0
H27: 0
H28: 0
H29: 0
H30: 0
H31: 0
H32: 0
H33: 0
H34: 0
H35: 0
H36: 0
H37: 0
H38: 0
H39: 0
H40: 0
H41: 0
H42: 0
H43: 0
B44: 11517 | C44: Major Contracts
B45: 12014 | C45: GM - Service Delivery
B46: 12047 | C46: Asset Management
B47: 12902 | C47: PM New Town
B48: 12952 | C48: Procurement & Fleet
B49: 13025 | C49: Planning & Scheduling Mgt
B50: 13032 | C50: Network Safety
B51: 13058 | C51: Commercial Partnership
B52: 13123 | C52: Network Strategy
B53: 13125 | C53: Asset Intelligence & Insights
B54: 13140 | C54: Powercor Contract
B55: 13223 | C55: Stations Assets
B56: 13235 | C56: Major Projects
B57: 13237 | C57: Energy Connections
B58: 13260 | C58: Transmission Delivery
B59: 13305 | C59: North Management
B60: 13340 | C60: Lines Assets
B61: 13401 | C61: North Bulk Project
B62: 13418 | C62: Metering Services Transformation
B63: 13435 | C63: CD&E Management
B64: 13451 | C64: Field Engineering Support
B65: 13485 | C65: Design
B66: 13513 | C66: Engineering Services
B67: 13514 | C67: Protection Control and Automation Assets
B68: 13601 | C68: Logistics
B69: 13643 | C69: Technical Standards
B70: 13674 | C70: South East Management
B71: 13685 | C71: East Transmission Contract
B72: 13723 | C72: Customer Team (East)
B73: 13840 | C73: Metering Business Strategy And Commercial
B74: 13945 | C74: Forward Program
B75: 13967 | C75: Asset Strategy & Planning (Gas)
B76: 13996 | C76: Asset Portfolio
B77: 14122 | C77: Scheduling (South East)
B78: 14175 | C78: Thomastown
B79: 14223 | C79: Central Delivery
B80: 14230 | C80: South Morang
B81: 14345 | C81: Hazelwood
B82: 14715 | C82: Rowville
B83: 18932 | C83: Operational Analytics & Performance
B84: 12605 | C84: Infrastructure Services Support
B85: 13162 | C85: Warehouse & Logistics
B86: 13263 | C86: Network Performance
B87: 13417 | C87: Network Planning
B88: 13520 | C88: Asset Management Systems
B105: Numeric quantity of allocator (eg no of man-hours)
B106: Corresponding cost allocation
C107: ABC allocation % (average)
B112: 2. Provide a detailed description and explanation of the basis of allocation:
E114: Prescribed Transmission Services (as above) | F114: Network Maintenance Support | G114: Asset Works Support
E116: $'000 | F116: $'000 | G116: $'000
B117: 1601 | C117: Logistics & Inventory
B119: Allocation based on:
B120: ABC survey
E123: $'000 | F123: $'000 | G123: $'000
B124: 5917 | C124: Asset Engineering
B126: Allocation based on:
B127: ABC survey
E130: $'000 | F130: $'000 | G130: $'000
B131: 9952 | C131: Procurement & Fleet
B133: Allocation based on:
B134: ABC survey
E137: $'000 | F137: $'000 | G137: $'000
B138: 13125 | C138: Asset Intelligence & Insights | E138: =SUMIF($B$23:$B$104,B138,$D$23:$D$104) -> 0 | F138: 0 | G138: =E138 -> 0
B140: Allocation based on:
B141: ABC survey
E144: $'000 | F144: $'000 | G144: $'000
B145: 13340 | C145: Lines Assets | E145: =SUMIF($B$23:$B$104,B145,$D$23:$D$104) -> 0 | F145: 0 | G145: =E145 -> 0
B147: Allocation based on:
B148: ABC survey
E151: $'000 | F151: $'000 | G151: $'000
B152: 13514 | C152: Protection Control and Automation Assets | E152: =SUMIF($B$23:$B$104,B152,$D$23:$D$104) -> 0 | F152: 0 | G152: =E152 -> 0
B154: Allocation based on:
B155: ABC survey
E158: $'000 | F158: $'000 | G158: $'000
B159: 13601 | C159: Logistics | E159: =SUMIF($B$23:$B$104,B159,$D$23:$D$104) -> 0 | F159: 0 | G159: =E159 -> 0
B161: Allocation based on:
B162: ABC survey
E165: $'000 | F165: $'000 | G165: $'000
B166: 13643 | C166: Technical Standards | E166: =SUMIF($B$23:$B$104,B166,$D$23:$D$104) -> 0 | F166: 0 | G166: =E166 -> 0
E168: Total Directly Attributed Cost | G168: Directly Attributed Asset Works Expenditure
B169: Numeric quantity of allocator
B170: (As a % of Total)
C173: TOTAL Asset Works Support $'000: | G173: =G117+G124+G131+G138+G145+G152+G159+G166 -> 0
B178: 3. Provide a detailed description and explanation of the basis of allocation:
C181: Based on ABC Survey of dedicated Responsibility Centres.
C182: Subsequent allocation to Asset Works Support per Table 2 above.
A185: Note: Totals may not add due to rounding.

Sheet DISAGG Aloc2
A2: NON-CAUSAL ALLOCATION
D3: (Not Applicable to AusNet Services)
A7: for the period ended: 31 March 2017
A9: A copy of this workpaper is to be produced for each Non-causal basis that has been used to allocate costs between Business Segments.
B11: 1. Non-causal basis of allocation ………………………………………
B13: 2. Complete the table set out below to indicate the Account Headings and the amounts subject to this non-causal basis.
A15: Account code or reference to account code | B15: Account Heading | D15: Prescribed Transmission Services | E15: Negotiated Transmission Services | F15: Non-Regulated Transmission Services | G15: Not Allocated | H15: Total
D16: $'000 | E16: $'000 | F16: $'000 | G16: $'000 | H16: $'000
B18: (List all Account Headings that have been allocated on this basis)
B26: 3. Provide a detailed description and explanation of the basis of allocation:
B36: 4. Explain why no causal basis could be established:
B46: 5. Explain the reasons for choosing this non-causal basis and why it was preferred over others:
B56: 6. Date on which the Commission/AER granted approval:

Sheet PTS Adj
A2: REGULATORY ADJUSTMENT JOURNALS - PRESCRIBED TRANSMISSION SERVICES
A7: for the period ended: 31 March 2017
A9: Journal | B9: Account Debited | D9: Amount | F9: Supporting
A10: number | C10: Account Credited | D10: Debit | E10: Credit | F10: Statement
D11: $'000 | E11: $'000 | F11: No.
B14: Provision for Self Insurance Costs | D14: 2806.0678 | F14: PTS ProvRec
A15: 1 | C15: Asset Works maintenance costs | E15: 542.4558 | F15: RFS Inc
C16: Capex Incurred | E16: 2263.612
B17: (To record claims against the Self Insurance Provision/Reserve)
B19: Self Insurance Costs | D19: 1702.246154 | F19: RFS Inc
A20: 2 | C20: Provision for Self Insurance Costs | E20: 1702.246154 | F20: PTS ProvRec
B21: (Annual Provision for Self Insurance Costs as allowed in AER's Final Decision)
B24: Depreciation | D24: 17971.39904 | F24: RFS Inc
A25: 3 | C25: Property, Plant & Equipment | E25: 17971.39904
B26: (Adjustment in Depreciation, and Valuation adjustment in Accounting PP&E, to reflect Regulatory PP&E)

Sheet PTS PriceRedn
A2: PRICE REDUCTION/RECOVERY - PRESCRIBED TRANSMISSION SERVICES
B3: (Not Applicable to AusNet Services)
A7: for the period ended: 31 March 2017
B9: $Customer TUOS | C9: $Common service
B10: general charges | C10: charges
A11: Reduction in prices payable
A12: by transmission customers
A17: Total Reduction
A19: *Recovery of above reduction in prices
A20: from other transmission customers
A24: Total Recovery
A27: Note:
A28: Each instance of a price reduction/recovery should be detailed.
A29: *The amount of any reduction in a transmission customer's Customer TUOS general charges
A30: and/or common service charges recovered from other transmission customers under clause 6A.26.1
A31: of the Rules.

Sheet PTS PDisc
A2: PRUDENT DISCOUNTS - PRESCRIBED TRANSMISSION SERVICES
D3: (Not Applicable to AusNet Services)
A7: for the period ended: 31 March 2017
B12: Number of discounts recovered in previous year
A13: For each discount recovered:
B14: Date of AER approval, if given
B15: Expiry date
B16: Party receiving the discount
B17: Beneficiary of discount
B18: Amount of discount offered in previous year
B19: Amount recovered from the other custumers in previous year
B20: Load subject to discount (max, min, average)
A21: For each discount approved by the AER:
B22: Compliance with conditions - for each condition imposed provide information demonstrating that the condition has been met.

Sheet PTS Rev
A2: REVENUE ANALYSIS - PRESCRIBED TRANSMISSION SERVICES
A7: for the period ended: 31 March 2017
A9: Account code or reference | B9: Tariff Category | D9: Amount of electricity transmitted | E9: Revenue
B11: Network Connection & Use of System Charges
C19: Total | E19: =SUM(E12:E18) -> 0
B21: Other Network Revenue
C26: Total | E26: =SUM(E22:E25) -> 0
A30: Note: Per AER's Explanatory Statement of April 2015 accompanying the Final Electricity Transmission Network Service Providers Information Guideline Version 2, this schedule is not required to be completed, as it is duplicated in the Economic Benchmarking Regulatory Information Notice (RIN).

Sheet PTS Asset Aging
A2: ASSET AGING SCHEDULE - PRESCRIBED TRANSMISSION SERVICES
A7: All asset values are net regulatory values
F10: Useful life remaining (years after Regulatory Accounting Date)
C11: Total | D11: 1-5 | E11: 6-10 | F11: 11-15 | G11: 16-20 | H11: >20
A12: Asset class | C12: $'000 | D12: $'000 | E12: $'000 | F12: $'000 | G12: $'000 | H12: $'000
B25: Total net regulatory value
A27: Note: Per AER's Explanatory Statement of April 2015 accompanying the Final Electricity Transmission Network Service Providers Information Guideline Version 2, this schedule is not required to be completed, as it is duplicated in the Category Analysis Regulatory Information Notice (RIN).

Sheet DISAGG ProvSum
A2: SUMMARY OF PROVISIONS
A7: for the period ended: 31 March 2017
D9: Prescribed Transmission Services | E9: Negotiated Transmission Services | F9: Non-Regulated Transmission Services | G9: Not Allocated | H9: Total
D10: $'000 | E10: $'000 | F10: $'000 | G10: $'000 | H10: $'000
B12: Amount set aside to provisions | D12: 27830.70567 | G12: 315.2749344
B14: Expenditure incurred debited to provisions | D14: -25125.25683 | G14: 0
B16: Amounts written back from provisions | D16: -4864.301379 | G16: -3235.16938
B18: Transfer from SPI Management Services Pty Ltd and EBS | D18: 0 | G18: 0
B20: Defined Benefit Adjustment | D20: -5035.517658 | G20: 0
B22: Net movement in provisions | D22: -7194.3702 | G22: -2919.894446
B24: Balance at start of period | D24: 38540.13348 | G24: 3631.24965
B26: Balance at end of period | D26: 31345.76328 | G26: 711.3552044
A29: Comprising:
B31: Current provisions | D31: 27556.81527 | G31: 711.3556144
B32: Non-current provision | D32: 3788.948005 | G32: -0.0004100000039
C34: Total per balance sheet | D34: 31345.76328 | G34: 711.3552044
H36: 0.0001745110349
A37: Note: Totals may not add due to rounding.

Sheet PTS ProvRec
A2: PROVISIONS RECONCILIATION - PRESCRIBED TRANSMISSION SERVICES
A7: for the period ended: 31 March 2017
C9: Description | D9: Discretionary Heading for each Material Provision | I9: Others | J9: Total
D11: $'000 | E11: $'000 | F11: $'000 | G11: $'000 | H11: $'000 | I11: $'000 | J11: $'000
A13: Balance at start of period
A15: Amount set aside to provisions
A17: Expenditure incurred debited to provisions
A19: Amounts written back from provisions
A22: Balance at end of period
A26: Net Movement in provisions per RFS FPerf
A29: Note:
A30: In addition it is mandatory to produce for each item that has been allocated to the Prescribed Services Segment a
A31: supporting workpaper that includes the following:
A32: a) the amounts that have been directly attributed to the Prescribed Services Segment
A33: b) the amounts that have been allocated to the Prescribed Services Segment
A34: c) a description of the allocation basis
A35: d) the numeric quantity of each allocator.
A37: The basis of attribution of provisions to the Prescribed Services Segment, should follow the attribution of the expenses to
A38: which they relate. Taxation, interest and dividend provisions should be attributed to the Not Allocated Segment.
A40: Note: Per AER's Explanatory Statement of April 2015 accompanying the Final Electricity Transmission Network Service Providers Information Guideline Version 2, this schedule is not required to be completed, as it is duplicated in the Economic Benchmarking RIN.

Sheet INF RelPartTrans
A2: RELATED PARTY TRANSACTIONS
A7: for the period ended: 31 March 2017
A9: Details of related party | B9: Description of transaction | C9: Prescribed | D9: Procurement process | E9: Monetary value of transaction
E10: $'000
B12: Revenue
A15: AusNet Electricity Services Pty Ltd (152) | B15: Exit/Connection Charges | C15: Prescribed | D15: Regulatory obligation
A17: AusNet Electricity Services Pty Ltd (152) | B17: Excluded Services Revenue | C17: Prescribed Excluded | D17: A competitive process was not undertaken
A19: Jemena Electricity Networks (Vic) Ltd | B19: Exit/Connection Charges | C19: Prescribed | D19: Regulatory obligation
A21: SP PowerAssets Ltd | B21: Chemical Services | C21: Non Regulated | D21: Competitive
A23: Jemena (Various) | B23: Services including Connection Services, Chemical Services, Protection Control, Gas Technical Services, GAS SCADA revenue, Metering and other miscellaneous services | C23: Non Regulated | D23: Competitive
A25: Jemena (Various) | B25: Excluded Services Revenue | C25: Prescribed Excluded
A27: AusNet Finance Pty Ltd (204) | B27: Interest expense on Inter-co loan from AusNet Finance Pty Ltd (lender) to AusNet Transmission Group Pty Ltd (borrower) | C27: Not Allocated | D27: n/a
A29: AusNet (No.8) Pty Ltd (133) | B29: Interest expense on Inter-co loan from AusNet (N8) Pty Ltd (lender) to AusNet Transmission Group Pty Ltd (borrower) | C29: Not Allocated | D29: n/a
B31: Capital
A32: Jemena (various) | B32: Capital Expenditure | C32: Prescribed | D32: A competitive process was not undertaken
A36: Balances with related parties at regulatory accounting date
E37: $'000
B39: Current assets
A45: SP PowerAssets Ltd | B45: Account Receivable relating to chemical services
A47: (Various inter-company) | B47: System generated clearing account for inter-company transactions
A49: Jemena (various) including United Energy Limited | B49: Accounts Receivable relating to Exit Charges revenue for the month of Mar 2017, chemical services, gas technical services, asset inspection revenue and other miscellaneous charges.
B51: Non-current assets
A52: AusNet Services (Transmission) Ltd | B52: Loan to AusNet Services (Transmission) Ltd
B56: Total assets
B58: Current liabilities
A59: AusNet Services (Transmission) Ltd | B59: Income tax liabilities (balance off-sets inter-co tax receivable in AusNet Services (Transmission) Ltd who submits the group's Tax returns
A60: (Various inter-company) | B60: System generated clearing account for inter-company transactions
A61: Jemena (various) | B61: Accounts payable relating to construction works, site installation and design work
A62: Singapore Power | B62: Reimbursement of Travel costs/insurance
B64: Non-current liabilities
A65: AusNet (No.8) Pty Ltd | B65: Loan from SPI (No. 8) Pty Ltd
A66: AusNet Finance Pty Ltd (8205) | B66: Loan from AusNet Finance Pty Ltd
A67: AST Ltd (8200) | B67: Loan from AST Ltd
B70: Total liabilities
A72: Commitments with related parties at regulatory accounting period
A73: Value of commitments with related parties that are expected to result in related party transactions in future regulatory accounting periods:
C74: Recognised as liabilities | D74: Not recognised as liabilities | E74: Total
C75: $'000 | D75: $'000 | E75: $'000
A77: Jemena (various) | B77: Payable:
B78: Not later than one year
B79: Later than one year and not later than five years
B80: Later than five years
B82: Total commitments
A84: Note: Totals may not add due to rounding.

Sheet INF RevRec
A2: REVENUE RECONCILIATION
A7: for the period ended: 31 March 2017
B9: Description | D9: Unit type | E9: Unit
C12: CPI (SeptTx) | D12: CPI – All Groups Weighted Average of 8 Capital Cities (ABS) | E12: 104
C13: CPI (Sept Tx+1) | D13: As above | E13: 106.4
C14: CPI (Sept Tx+2) | D14: As above | E14: 108
C15: Change in CPI (Tx+1) | D15: Per cent | E15: 0.02307692308
C16: Change in CPI (Tx+2) | D16: Per cent | E16: 0.01503759398
C17: X-factor | D17: Per cent | E17: 0.03237385931
C18: AR (Tx) | D18: $ | E18: 538100000
C19: AR (Tx+2) | D19: $ | E19: 523201033.4
C20: S-factor (Tx+1) | D20: $+ | E20: 10328876.24
C21: Under/over recovery AR (Tx+1) | D21: $+ | E21: 0
C22: Pass Through (Easement Tax) | D22: $ | E22: 3954796.611
C23: Closure of AIS - under-recovery of allowance for rebates | D23: $ | E23: -2427076
C24: Revenue Cap Tx+2 | D24: $ | E24: 535057630.2

Sheet Historic Opex Summary
B2: HISTORIC OPEX by expenditure category
B13: $ million nominal | C13: Financial year | D13: Any part years | E13: Year 1 | F13: Year 2 | G13: Year 3 | H13: Year 4 | I13: Year 5 | J13: Total | K13: Revenue Cap Allowance | L13: Key cost drivers and explanation for material differences over time
B14: System Recurrent
B15: Maintenance
B16: Secondary Systems
B17: Labour
B18: Materials
B19: Sub-Totals
B20: Substations
B21: Labour
B22: Materials
B23: Sub-Totals
B24: Lines
B25: Labour
B26: Materials
B27: Sub-Totals
B28: Communications
B29: Labour
B30: Materials
B31: Sub-Totals
B32: Easements
B33: Labour
B34: Materials
B35: Sub-Totals
B36: Summary
B37: Sub-Total Labour
B38: Sub-Total Materials
B39: Total Maintenance
B40: Asset Management Support
B41: Operations
B42: OHS
B43: Taxes and Charges
B44: Insurance
B45: Total System Recurrent
B46: System Non-Recurrent
B47: Asset Works Program
B48: Asset Management Support
B49: Total System Non-Recurrent
B50: Non-System
B51: Finance
B52: HR
B53: IT
B54: Other
B55: Total Non-System
B56: Summary
B57: Total Labour
B58: Total Maintenance Materials
B59: Total Other Materials
B60: TOTAL OPEX
B62: Grand Total
B64: Revenue Cap Allowance
B65: Note: Per AER's Explanatory Statement of April 2015 accompanying the Final Electricity Transmission Network Service Providers Information Guideline Version 2, this schedule is not required to be completed, as it is duplicated in the Economic Benchmarking RIN and Category Analysis RIN.

Sheet Hist Opex by Cat. Part Year (hidden)
B1: HISTORIC OPEX by expenditure category
D12: Any Part Year
D13: Field Maintenance
B14: $ million, nominal | D14: Routine | E14: Condition-Based | F14: Corrective | H14: TOTAL | J14: Revenue Cap Allowance | L14: Key cost drivers and explanation for material differences over time
B15: System Recurrent
B16: Maintenance
B17: Secondary Systems
B18: Labour
B19: Materials
B20: Sub-Totals
B21: Substations
B22: Labour
B23: Materials
B24: Sub-Totals
B25: Lines
B26: Labour
B27: Materials
B28: Sub-Totals
B29: Communications
B30: Labour
B31: Materials
B32: Sub-Totals
B33: Easements
B34: Labour
B35: Materials
B36: Sub-Totals
B37: Summary
B38: Sub-Total Labour
B39: Sub-Total Materials
B40: Total Maintenance
B41: Asset Management Support
B42: Operations
B43: OHS
B44: Taxes and Charges
B45: Insurance
B46: Total System Recurrent
B47: System Non-Recurrent
B48: Asset Works Program
B49: Asset Management Support
B50: Total System Non-Recurrent
B51: Non-System
B52: Finance
B53: HR
B54: IT
B55: Other
B56: Total Non-System
B57: Summary
B58: Total Labour
B59: Total Maintenance Materials
B60: Total Other Materials
B61: TOTAL OPEX
B64: Grand Total
B66: Revenue Cap Allowance
B67: Note: Per AER's Explanatory Statement of April 2015 accompanying the Final Electricity Transmission Network Service Providers Information Guideline Version 2, this schedule is not required to be completed, as it is duplicated in the Economic Benchmarking RIN and Category Analysis RIN.

Sheet Historic Opex by Category Yr1 (hidden)
B2: HISTORIC OPEX by expenditure category
D13: Year 1
D14: Field Maintenance
B15: $ million, nominal | D15: Routine | E15: Condition-Based | F15: Corrective | H15: TOTAL | J15: Revenue Cap Allowance | L15: Key cost drivers and explanation for material differences over time
B16: System Recurrent
B17: Maintenance
B18: Secondary Systems
B19: Labour
B20: Materials
B21: Sub-Totals
B22: Substations
B23: Labour
B24: Materials
B25: Sub-Totals
B26: Lines
B27: Labour
B28: Materials
B29: Sub-Totals
B30: Communications
B31: Labour
B32: Materials
B33: Sub-Totals
B34: Easements
B35: Labour
B36: Materials
B37: Sub-Totals
B38: Summary
B39: Sub-Total Labour
B40: Sub-Total Materials
B41: Total Maintenance
B42: Asset Management Support
B43: Operations
B44: OHS
B45: Taxes and Charges
B46: Insurance
B47: Total System Recurrent
B48: System Non-Recurrent
B49: Asset Works Program
B50: Asset Management Support
B51: Total System Non-Recurrent
B52: Non-System
B53: Finance
B54: HR
B55: IT
B56: Other
B57: Total Non-System
B58: Summary
B59: Total Labour
B60: Total Maintenance Materials
B61: Total Other Materials
B62: TOTAL OPEX
B65: Grand Total
B67: Revenue Cap Allowance

Sheet Historic Opex by Category Yr2 (hidden)
B2: HISTORIC OPEX by expenditure category
D13: Year 2
D14: Field Maintenance
B15: $ million, nominal | D15: Routine | E15: Condition-Based | F15: Corrective | H15: TOTAL | J15: Revenue Cap Allowance | L15: Key cost drivers and explanation for material differences over time
B16: System Recurrent
B17: Maintenance
B18: Secondary Systems
B19: Labour
B20: Materials
B21: Sub-Totals
B22: Substations
B23: Labour
B24: Materials
B25: Sub-Totals
B26: Lines
B27: Labour
B28: Materials
B29: Sub-Totals
B30: Communications
B31: Labour
B32: Materials
B33: Sub-Totals
B34: Easements
B35: Labour
B36: Materials
B37: Sub-Totals
B38: Summary
B39: Sub-Total Labour
B40: Sub-Total Materials
B41: Total Maintenance
B42: Asset Management Support
B43: Operations
B44: OHS
B45: Taxes and Charges
B46: Insurance
B47: Total System Recurrent
B48: System Non-Recurrent
B49: Asset Works Program
B50: Asset Management Support
B51: Total System Non-Recurrent
B52: Non-System
B53: Finance
B54: HR
B55: IT
B56: Other
B57: Total Non-System
B58: Summary
B59: Total Labour
B60: Total Maintenance Materials
B61: Total Other Materials
B62: TOTAL OPEX
B65: Grand Total
B67: Revenue Cap Allowance

Sheet Historic Opex by Category Yr3 (hidden)
B2: HISTORIC OPEX by expenditure category
D13: Year 3
D14: Field Maintenance
B15: $ million, nominal | D15: Routine | E15: Condition-Based | F15: Corrective | H15: TOTAL | J15: Revenue Cap Allowance | L15: Key cost drivers and explanation for material differences over time
B16: System Recurrent
B17: Maintenance
B18: Secondary Systems
B19: Labour
B20: Materials
B21: Sub-Totals
B22: Substations
B23: Labour
B24: Materials
B25: Sub-Totals
B26: Lines
B27: Labour
B28: Materials
B29: Sub-Totals
B30: Communications
B31: Labour
B32: Materials
B33: Sub-Totals
B34: Easements
B35: Labour
B36: Materials
B37: Sub-Totals
B38: Summary
B39: Sub-Total Labour
B40: Sub-Total Materials
B41: Total Maintenance
B42: Asset Management Support
B43: Operations
B44: OHS
B45: Taxes and Charges
B46: Insurance
B47: Total System Recurrent
B48: System Non-Recurrent
B49: Asset Works Program
B50: Asset Management Support
B51: Total System Non-Recurrent
B52: Non-System
B53: Finance
B54: HR
B55: IT
B56: Other
B57: Total Non-System
B58: Summary
B59: Total Labour
B60: Total Maintenance Materials
B61: Total Other Materials
B62: TOTAL OPEX
B65: Grand Total
B67: Revenue Cap Allowance

Sheet Historic Opex by Category Yr4 (hidden)
B2: HISTORIC OPEX by expenditure category
D13: Year 4
D14: Field Maintenance
B15: $ million, nominal | D15: Routine | E15: Condition-Based | F15: Corrective | H15: TOTAL | J15: Revenue Cap Allowance | L15: Key cost drivers and explanation for material differences over time
B16: System Recurrent
B17: Maintenance
B18: Secondary Systems
B19: Labour
B20: Materials
B21: Sub-Totals
B22: Substations
B23: Labour
B24: Materials
B25: Sub-Totals
B26: Lines
B27: Labour
B28: Materials
B29: Sub-Totals
B30: Communications
B31: Labour
B32: Materials
B33: Sub-Totals
B34: Easements
B35: Labour
B36: Materials
B37: Sub-Totals
B38: Summary
B39: Sub-Total Labour
B40: Sub-Total Materials
B41: Total Maintenance
B42: Asset Management Support
B43: Operations
B44: OHS
B45: Taxes and Charges
B46: Insurance
B47: Total System Recurrent
B48: System Non-Recurrent
B49: Asset Works Program
B50: Asset Management Support
B51: Total System Non-Recurrent
B52: Non-System
B53: Finance
B54: HR
B55: IT
B56: Other
B57: Total Non-System
B58: Summary
B59: Total Labour
B60: Total Maintenance Materials
B61: Total Other Materials
B62: TOTAL OPEX
B65: Grand Total
B67: Revenue Cap Allowance

Sheet Historic Opex by Category Yr5 (hidden)
B2: HISTORIC OPEX by expenditure category
D13: Year 5
D14: Field Maintenance
B15: $ million, nominal | D15: Routine | E15: Condition-Based | F15: Corrective | H15: TOTAL | J15: Revenue Cap Allowance | L15: Key cost drivers and explanation for material differences over time
B16: System Recurrent
B17: Maintenance
B18: Secondary Systems
B19: Labour
B20: Materials
B21: Sub-Totals
B22: Substations
B23: Labour
B24: Materials
B25: Sub-Totals
B26: Lines
B27: Labour
B28: Materials
B29: Sub-Totals
B30: Communications
B31: Labour
B32: Materials
B33: Sub-Totals
B34: Easements
B35: Labour
B36: Materials
B37: Sub-Totals
B38: Summary
B39: Sub-Total Labour
B40: Sub-Total Materials
B41: Total Maintenance
B42: Asset Management Support
B43: Operations
B44: OHS
B45: Taxes and Charges
B46: Insurance
B47: Total System Recurrent
B48: System Non-Recurrent
B49: Asset Works Program
B50: Asset Management Support
B51: Total System Non-Recurrent
B52: Non-System
B53: Finance
B54: HR
B55: IT
B56: Other
B57: Total Non-System
B58: Summary
B59: Total Labour
B60: Total Maintenance Materials
B61: Total Other Materials
B62: TOTAL OPEX
B65: Grand Total
B67: Revenue Cap Allowance

Sheet Historic Capex by Category
B2: HISTORIC CAPEX by project category
A14: $M nominal
A16: Project Category | F16: Any Part Year | G16: Year 1 | H16: Year 2 | I16: Year 3 | J16: Year 4 | K16: Year 5 | L16: TOTAL
A18: NETWORK
A19: NON-LOAD DRIVEN | B19: Replacements
B21: Security/Compliance
B23: Other
A25: NON NETWORK
A26: BUSINESS IT | C26: Information Technology
A28: SUPPORT THE BUSINESS | C28: Buildings
C30: Motor Vehicles
C32: Other
A35: TOTAL FDC
A36: TOTAL HISTORIC CAPEX
A38: Note: Per AER's Explanatory Statement of April 2015 accompanying the Final Electricity Transmission Network Service Providers Information Guideline Version 2, this schedule is not required to be completed, as it is duplicated in the Category Analysis RIN.

Sheet Hist Capex by Asset Class
B2: HISTORIC CAPEX by asset class
A12: Actual Gross Capital Expenditure – As Incurred ($m Nominal)
D13: Year | E13: Year-1 | F13: Year 1 | G13: Year 2 | H13: Year 3 | I13: Year 4 | J13: Year 5
A14: Asset Class | E14: 2013/14 | F14: 2014/15 | G14: 2015/16 | H14: 2016/17 | I14: 2017/18 | J14: 2018/19
B15: Secondary | E15: 22.83210468 | F15: 19.46566064 | G15: 25.58987017 | H15: 22.71074981
B16: Switchgear | E16: 35.87772823 | F16: 42.68982641 | G16: 34.88545121 | H16: 33.43484591
B17: Transformers | E17: 27.70800506 | F17: 30.42525184 | G17: 25.92031402 | H17: 33.47462932
B18: Reactive | E18: 2.370654189 | F18: 4.780705191 | G18: 0.9278869336 | H18: -0.5295196683
B19: Transmission Lines | E19: 16.50882764 | F19: 11.67339461 | G19: 24.98364678 | H19: 18.49104078
B20: Establishment | E20: 9.482041384 | F20: 10.7209041 | G20: 12.44950622 | H20: 9.096585405
B21: Communications | E21: 7.40074831 | F21: 9.244901715 | G21: 5.10664783 | H21: 7.634336497
B22: Network Switching Centre | E22: 0 | F22: 0 | G22: 0 | H22: 0
B23: Easements | E23: 0 | F23: 0 | G23: 0 | H23: 0
B24: Land | E24: 0 | F24: 0 | G24: 0 | H24: 0
B25: Inventory | E25: 0.82268351 | F25: 1.83768393 | G25: -0.2882583162 | H25: -1.688057064
B26: Non-System - IT | E26: 17.82988555 | F26: 19.25251699 | G26: 8.590219936 | H26: 6.423828844
B27: Non-System - Motor Vehicles | E27: 1.082195621 | F27: 0.7739182244 | G27: 0.6881363832 | H27: 0.5992950883
B28: Non-System - Premises | E28: 0.5153851645 | F28: 0.128221436 | G28: 0 | H28: 0.3504345613
B29: Non-System - Other | E29: 2.716751861 | F29: 2.16517067 | G29: 1.564085453 | H29: 1.422083116 | K29: Total Yrs 1-5 | L29: Total
D30: Sub total | E30: 145.1470112 | F30: 153.1581558 | G30: 140.4175066 | H30: =SUM(H15:H29) -> 131.4202526 | I30: =SUM(I15:I29) -> 0 | J30: =SUM(J15:J29) -> 0 | K30: =SUM(F30:J30) -> 424.995915 | L30: =SUM(E30:J30) -> 570.1429262
G31: 0 | H31: 0
B32: Note 1:
B33: 2016/17: There are no customer contribution adjustments for 2016/17. Total Capital Expenditure reported is net of $2.264m claimed against self-insurance provision. 2015/16: There are no customer contribution adjustments for 2015/16. Total Capital Expenditure reported is net of $0.548m claimed against self-insurance provision. 2014/15: The 2014/15 total capital expenditure is net of customer contribution of $0.144m, and net of $3.283m in capex incurred claimed against self-insurance provision. 2013/14: There were no customer contribution and self insurance adjustments for 2013/14.
B35: Note 2:
B36: Regarding Project XB17 Refurbishment of Geelong Terminal Station, the allocation into the asset class categories under 2013/14 have been amended to align with the final commissioning of the asset. This revised allocation was applied to the 2014/15 capex spend as well. Nil in 2015/16. Nil in 2016/17.
A41: Notes: - Exclude half year rate of return. Inputs are assumed to be in middle of year terms because actual capex is reported evenly over a financial year. - The asset classes inputed by each TNSP must be the same as those used in the RFM/PTRM. - Yr -1 is the final year of the previous regulatory control period. - Capex should be adjusted for any movements in capitalised provisions and be net of customer contributions. Where relevant please note the amount of any customer contributions excluded. - TNSPs are to update capex as incurred for previous years of the regulatory control period to reflect any movements that may have occurred (e.g. due to the final commissioning of assets). When this information is updated TNSPs must also note the reason for the movement. - Where capex related to Network Capability Incentive Parameter Action Plan (NCIPAP) projects has been incurred and reported across asset classes, the total amount for each project should be noted.
A45: Actual Asset Disposal – As Incurred ($m Nominal)
D46: Year | E46: Year -1 | F46: Year 1 | G46: Year 2 | H46: Year 3 | I46: Year 4 | J46: Year 5
A47: Asset Class | E47: 2013/14 | F47: 2014/15 | G47: 2015/16 | H47: 2016/17 | I47: 2017/18 | J47: 2018/19
B48: Secondary | E48: 0 | F48: 0 | G48: 0 | H48: 0
B49: Switchgear | E49: 0 | F49: 0 | G49: 0 | H49: 0
B50: Transformers | E50: 0 | F50: 0 | G50: 0 | H50: 0
B51: Reactive | E51: 0 | F51: 0 | G51: 0 | H51: 0
B52: Transmission Lines | E52: 0 | F52: 0 | G52: 0 | H52: 0
B53: Establishment | E53: 0 | F53: 0 | G53: 0 | H53: 0
B54: Communications | E54: 0 | F54: 0 | G54: 0 | H54: 0
B55: Network Switching Centre | E55: 0 | F55: 0 | G55: 0 | H55: 0
B56: Easements | E56: 0 | F56: 0 | G56: 0 | H56: 0.00454545
B57: Land | E57: 0 | F57: 0 | G57: 0 | H57: 0
B58: Inventory | E58: 0 | F58: 0 | G58: 0 | H58: 0
B59: Non-System - IT | E59: 0 | F59: 0 | G59: 0 | H59: 0
B60: Non-System - Motor Vehicles | E60: 0 | F60: 0 | G60: 0 | H60: 0.1165935
B61: Non-System - Premises | E61: 0 | F61: 0 | G61: 0 | H61: 0
B62: Non-System - Other | E62: 0 | F62: 0 | G62: 0 | H62: 0 | K62: Total Yrs 1-5 | L62: Total
D63: Sub total | E63: =SUM(E48:E62) -> 0 | F63: 0 | G63: 0 | H63: =SUM(H48:H62) -> 0.12113895 | I63: =SUM(I48:I62) -> 0 | J63: 0 | K63: =SUM(F63:J63) -> 0.12113895 | L63: =SUM(E63:J63) -> 0.12113895
E64: 0 | F64: 0 | G64: 0 | H64: 0
A65: Notes: - Exclude half year rate of return. Inputs are assumed to be in middle of year terms because actual disposal is reported evenly over a financial year. - The asset classes inputed by each TNSP must be the same as those used in the RFM/PTRM. - Yr -1 is the final year of the previous regulatory control period.
A71: Actual Gross Capital Expenditure – As Commissioned ($m Nominal)
D72: Year | E72: Year -1 | F72: Year 1 | G72: Year 2 | H72: Year 3 | I72: Year 4 | J72: Year 5
A73: Asset Class | E73: 2013/14 | F73: 2014/15 | G73: 2015/16 | H73: 2016/17 | I73: 2017/18 | J73: 2018/19
B74: Secondary | E74: 19.72533999 | F74: 40.16476446 | G74: 15.24654964 | H74: 28.70763923
B75: Switchgear | E75: 28.29735619 | F75: 38.20540214 | G75: 17.8256734 | H75: 29.51234152
B76: Transformers | E76: 37.24864264 | F76: 10.51943639 | G76: 10.04367536 | H76: 14.4564704
B77: Reactive | E77: 1.540672936 | F77: 4.960878103 | G77: 1.060628057 | H77: 0.1500779087
B78: Transmission Lines | E78: 27.50037786 | F78: 24.27604234 | G78: 18.47445902 | H78: 21.76405396
B79: Establishment | E79: 23.04837549 | F79: 29.34880458 | G79: 27.18487847 | H79: 9.754000976
B80: Communications | E80: 8.634042373 | F80: 19.63534216 | G80: 3.673481807 | H80: 10.33120136
B81: Network Switching Centre | E81: 0 | F81: 0 | G81: 0 | H81: 0
B82: Easements | E82: 0 | F82: 0 | G82: 0 | H82: 0
B83: Land | E83: 0 | F83: 0 | G83: 0 | H83: 0
B84: Inventory | E84: 0.82268351 | F84: 1.83768393 | G84: -0.2882583162 | H84: -1.688057064
B85: Non-System - IT | E85: 14.71918098 | F85: 3.834674148 | G85: 33.45206801 | H85: 6.593011958
B86: Non-System - Motor Vehicles | E86: 1.609678833 | F86: 0.6730363313 | G86: 0.6884410055 | H86: 0.4883993913
B87: Non-System - Premises | E87: 0.2441075825 | F87: 0.4451256864 | G87: 0 | H87: 0
B88: Non-System - Other | E88: 4.749410847 | F88: 3.187454531 | G88: 0.9364895111 | H88: 1.668234792 | K88: Total Yrs 1-5 | L88: Total
D89: Sub total | E89: 168.1398692 | F89: 177.0886448 | G89: 128.298086 | H89: =SUM(H74:H88) -> 121.7373744 | I89: =SUM(I74:I88) -> 0 | J89: 0 | K89: =SUM(F89:J89) -> 427.1241052 | L89: =SUM(E89:J89) -> 595.2639744
G90: 0 | H90: 0
B91: Note 3:
B92: 2016/17: There are no customer contribution adjustments for 2016/17. Total Capital Expenditure reported is net of $2.264m claimed against self-insurance provision as mentioned in Note 1 above.
B93: 2015/16: There is no customer contribution adjustment. Total Capital Expenditure reported is net of $3.145m in capex commissioned relating to projects claimed against self-insurance provision in 2014/15 and 2015/16 as mentioned in Note 1 above.
B94: 2014/15: Total Capital Expenditure reported is net of customer contribution of $0.144m, and net of $0.494m in capex commissioned relating to projects claimed against self-insurance provision in 2014/15 as mentioned in Note 1 above.
B95: 2013/14: There are no customer contribution and self insurance adjustments.
A96: Notes: - Exclude half year rate of return. Inputs are assumed to be in middle of year terms because actual capex is reported evenly over a financial year. - The asset classes inputed by each TNSP must be the same as those used in the RFM/PTRM. - Yr -1 is the final year of the previous regulatory control period. - Capex should be adjusted for any movements in capitalised provisions and be net of customer contributions. Where relevant please note the amount of any customer contributions excluded. - Where capex related to Network Capability Incentive Parameter Action Plan (NCIPAP) projects has been incurred and reported across asset classes, the total amount for each project should be noted.
A101: Actual Asset Disposal – As De-Commissioned ($m Nominal)
D102: Year | E102: Year -1 | F102: Year 1 | G102: Year 2 | H102: Year 3 | I102: Year 4 | J102: Year 5
A103: Asset Class | E103: 2013/14 | F103: 2014/15 | G103: 2015/16 | H103: 2016/17 | I103: 2017/18 | J103: 2018/19
B104: Secondary | E104: 0 | F104: 0 | G104: 0 | H104: 0
B105: Switchgear | E105: 0 | F105: 0 | G105: 0 | H105: 0
B106: Transformers | E106: 0 | F106: 0 | G106: 0 | H106: 0
B107: Reactive | E107: 0 | F107: 0 | G107: 0 | H107: 0
B108: Transmission Lines | E108: 0 | F108: 0 | G108: 0 | H108: 0
B109: Establishment | E109: 0 | F109: 0 | G109: 0 | H109: 0
B110: Communications | E110: 0 | F110: 0 | G110: 0 | H110: 0
B111: Network Switching Centre | E111: 0 | F111: 0 | G111: 0 | H111: 0
B112: Easements | E112: 0 | F112: 0 | G112: 0 | H112: 0.00454545
B113: Land | E113: 0 | F113: 0 | G113: 0 | H113: 0
B114: Inventory | E114: 0 | F114: 0 | G114: 0 | H114: 0
B115: Non-System - IT | E115: 0 | F115: 0 | G115: 0 | H115: 0
B116: Non-System - Motor Vehicles | E116: 0 | F116: 0 | G116: 0 | H116: 0.1165935
B117: Non-System - Premises | E117: 0 | F117: 0 | G117: 0 | H117: 0
B118: Non-System - Other | E118: 0 | F118: 0 | G118: 0 | H118: 0 | K118: Total Yrs 1-5 | L118: Total
D119: Sub total | E119: =SUM(E104:E118) -> 0 | F119: 0 | G119: 0 | H119: 0.12113895 | I119: =SUM(I104:I118) -> 0 | J119: 0 | K119: =SUM(F119:J119) -> 0.12113895 | L119: =SUM(E119:J119) -> 0.12113895
E120: 0 | F120: 0 | G120: 0 | H120: 0
A121: Notes: - Exclude half year rate of return. Inputs are assumed to be in middle of year terms because actual disposal is reported evenly over a financial year. - The asset classes inputed by each TNSP must be the same as those used in the RFM/PTRM. - Yr -1 is the final year of the previous regulatory control period.
A123: Note: Totals may not add due to rounding.

Sheet Hist Capex - Network
B2: HISTORIC CAPEX - NETWORK- by project
A14: $M nominal
F15: Yearly expenditure by project (inclusive of FDC)
A17: Project ID | B17: Project Description | C17: Commissioning Date | D17: Category^ | F17: Any Part Year | G17: Year 1 | H17: Year 2 | I17: Year 3 | J17: Year 4 | K17: Year 5 | L17: TOTAL | N17: REASON FOR PROJECT | O17: Reg Test / Business Case (Y/N) | P17: Reg Test / Business Case Cost Estimate | Q17: Reason for Variance from Cost Estimate / Expected Commissioning Date
F108: Subtotal
D110: ^refers to Categories (e.g Augmentation, Replacement, etc) as defined in “Historic Capex Instructions” worksheet | J110: *Note that values in these columns are estimates only
A112: Note: Per AER's Explanatory Statement of April 2015 accompanying the Final Electricity Transmission Network Service Providers Information Guideline Version 2, this schedule is not required to be completed, as it is duplicated in the Category Analysis RIN.

Sheet Hist Capex - Non-Network
B2: HISTORIC CAPEX - NON-NETWORK- by project
I3: (Prescribed; Incurred)
A14: $M nominal
F15: Yearly expenditure by project (inclusive of FDC)
A17: Project ID | B17: Project Description | C17: Commissioning Date | D17: Category^ | F17: Any Part Year | G17: Year 1 | H17: Year 2 | I17: Year 3 | J17: Year 4 | K17: Year 5 | L17: TOTAL | N17: REASON FOR PROJECT | O17: Reg Test / Business Case (Y/N) | P17: Reg Test / Business Case Cost Estimate | Q17: Reason for Variance from Cost Estimate / Expected Commissioning Date
B18: Computer Equipment/Projects | D18: Information Technology | G18: 19.2812579 | H18: 8.753090024 | I18: 6.303090129 | L18: =SUM(G18:K18) -> 34.33743806
B19: General Equipment and Funiture | D19: Other | G19: 0 | H19: 0 | I19: 0 | L19: =SUM(G19:K19) -> 0
B20: Tools and Equipment | D20: Other | G20: 1.3093434 | H20: 1.19673157 | I20: 1.395354433 | L20: 3.901429403
B21: Other General Assets | D21: Other | G21: 0.8590595221 | H21: 0.1073986465 | I21: 0 | L21: 0.9664581685
B22: Property - Buildings | D22: Buildings | G22: 0.12841285 | H22: 0 | I22: 0.3438479882 | L22: 0.4722608382
B23: Vehicles/Plant | D23: Motor Vehicles | G23: 0.77507356 | H23: 0.6532037728 | I23: 0.5880310711 | L23: 2.016308404
B24: Recoverable Works Construction | D24: Other | G24: 0 | H24: 0 | I24: 0 | L24: 0
F27: Subtotal | G27: =SUM(G18:G25) -> 22.35314723 | H27: =SUM(H18:H25) -> 10.71042401 | I27: 8.630323621 | L27: =SUM(L18:L25) -> 41.69389487
G28: 0 | H28: 0 | I28: 0 | L28: 0
D29: ^refers to Categories (e.g Augmentation, Replacement, etc) as defined in “Historic Capex Instructions” worksheet | J29: *Note that values in these columns are estimates only
A32: Note: Totals may not add due to rounding.
A33: Note: Capex presented in this schedule is not adjusted for any movements in capitalised provisions.

Sheet NCIPAP projects
C2: NCIPAP capex - by project
C3: (Prescribed; Incurred & Commissioned)
A6: $M nominal
A9: Project ID | B9: NCIPAP projects (As Incurred) | F9: Any Part Year | G9: Year 1 2014/15 | H9: Year 2 2015/16 | I9: Year 3 2016/17 | J9: Year 4 | K9: Year 5 | L9: TOTAL
A11: XD05 | B11: Network Capability Incentive Parameter Action Plan (NCIPAP) | E11: see Note 1 below | G11: -0.104038194 | H11: 0.003859188474 | I11: 7.828e-05 | L11: =SUM(G11:I11) -> -0.1001007255
A12: 026A | B12: NCIPAP 4 Emergency Control Scheme for the loss of both DDTS to MSS 330kV lines | G12: 0.04073239371 | H12: 0.4964354581 | I12: 1.15717831 | L12: 1.694346162
A13: 027A | B13: NCIPAP 5 Emergency Control Scheme for the loss of both DDTS to SMTS 330kV lines | G13: 0.04962264365 | H13: 0.2252905682 | I13: 1.29888744 | L13: 1.573800652
A14: 028A | B14: NCIPAP 6 Replace two 220kV isolators and protection setting change at Rowville T | G14: 0.04534012585 | H14: 0.006945027291 | I14: 0.00066537 | L14: 0.05295052314
A15: 029A | B15: NCIPAP 7 Increase instrumentation range for eleven specified circuits | G15: 0.0307644505 | H15: 0.1094431612 | I15: 0.0538645 | L15: 0.1940721117
A16: 030A | B16: NCIPAP 8 Wind monitoring scheme on Rowville to Malvern 220kV lines | G16: 0.01067727322 | H16: 0.1310709352 | I16: 0.05110175 | L16: 0.1928499584
A17: 031A | B17: NCIPAP 9 Establish inter-trip control systems for APD | G17: 0.02067657253 | H17: 0.01008823497 | I17: 0.74793656 | L17: 0.7787013675
F22: Subtotal | G22: =SUM(G10:G20) -> 0.0937752655 | H22: =SUM(H10:H20) -> 0.9831325734 | I22: 3.30971221 | J22: 0 | K22: 0 | L22: 4.386620049
G23: 0 | H23: 0 | I23: 0 | J23: 0 | K23: 0 | L23: 0
A24: Note 1:
A25: Project ID XD05 is a parent/general project number which records NCIPAP capex prior to being re-allocated to dedicated NCIPAP project numbers such as NCIPAP 4 to NCIPAP 9 above.
A26: In 2014/15, the -$0.104m negative figure is largely due to a reallocation of costs captured in 2013/14 and 2014/15 to dedicated NCIPAP projects.
A32: Project ID | B32: NCIPAP projects (As Commissioned) | F32: Any Part Year | G32: Year 1 2014/15 | H32: Year 2 2015/16 | I32: Year 3 2016/17 | J32: Year 4 | K32: Year 5 | L32: TOTAL
A34: XD05 | B34: Network Capability Incentive Parameter Action Plan (NCIPAP) | G34: 0 | H34: 0 | I34: 0 | L34: =SUM(G34:I34) -> 0
A35: 026A | B35: NCIPAP 4 Emergency Control Scheme for the loss of both DDTS to MSS 330kV lines | G35: 0 | H35: 0 | I35: 1.652608135 | L35: 1.652608135
A36: 027A | B36: NCIPAP 5 Emergency Control Scheme for the loss of both DDTS to SMTS 330kV lines | G36: 0 | H36: 0 | I36: 1.535032108 | L36: 1.535032108
A37: 028A | B37: NCIPAP 6 Replace two 220kV isolators and protection setting change at Rowville T | G37: 0.03736177 | H37: 0 | I37: 0.01520474437 | L37: 0.05256651437
A38: 029A | B38: NCIPAP 7 Increase instrumentation range for eleven specified circuits | G38: 0 | H38: 0 | I38: 0.1892913962 | L38: 0.1892913962
A39: 030A | B39: NCIPAP 8 Wind monitoring scheme on Rowville to Malvern 220kV lines | G39: 0 | H39: 0 | I39: 0.1880993491 | L39: 0.1880993491
A40: 031A | B40: NCIPAP 9 Establish inter-trip control systems for APD | G40: 0 | H40: 0 | I40: 0.7595190665 | L40: 0.7595190665
F45: Subtotal | G45: =SUM(G33:G43) -> 0.03736177 | H45: =SUM(H33:H43) -> 0 | I45: 4.3397548 | J45: 0 | K45: 0 | L45: 4.37711657
G46: 0 | H46: 0 | I46: 0 | J46: 0 | K46: 0 | L46: 0
A47: Note: Totals may not add due to rounding.

Sheet Commentary on Opex (hidden)
A1: Historic Opex Commentary proforma: key cost drivers
A3: This pro forma is designed to allow the TNSP to provide context and background for the quantitative opex templates.
A5: The historic opex tables provide a column where the key cost drivers for historic opex should be briefly listed. This commentary pro forma provides opportunity for more detailed explanations regarding material changes in particular expenses over the relevant regulatory period.
A7: The commentary should address the following:
A9: >The main cost drivers for the particular opex item (eg changes in CPI, legislative and regulatory requirements, environmental factors).
A10: >Were these increases foreseeable? If not, why not?
A11: >Details of management induced opex efficiencies achieved.
A12: >Major opex risks and mitigation strategies.
A13: >Key Performance Indicators – are these benchmarked against other transmission companies?
A15: In addition, the TNSP is requested to provide:
A17: >Definitions of ‘opex’ and ‘capex’ used by the business. Further, the TNSP should provide definitions for the categories and activities used in the opex templates. These definitions should be added to the definition section in the opex instructions.
A18: >A discussion on the relationship between opex and capex.
A19: >Details of changes in accounting policies over the past regulatory period and how they may have impacted on opex in general or specific opex items.
A22: Commentary on cost drivers and material changes over the current regulatory period
A23: Expense item eg. salaries
A25: Expense item template
A27: Expense item
A29: Supporting information
A30: Please list documentation substantiating the reason for change
A31: (eg. asset management plan/strategy.)
A33: Commentary on cost drivers and material changes affecting the upcoming regulatory period
A34: Expense item eg. salaries
A36: Expense item
A38: Expense item
A40: Supporting information
A41: Please list documentation substantiating the reason for change

Sheet Commentary on Historic Capex (hidden)
A1: Historic Capex Commentary Proforma: reasons for variance
A3: This pro forma is designed to allow TNSP's to provide context and background for the quantitative historic capex templates.
A5: Tables HOE Netw and HCE Non Netw provide a column where reasons for capex cost variances may be briefly listed. This pro forma provides the opportunity for more detailed reasons to be given for material differences between actual project costs and amounts included in the regulatory test/business case assessment.
A7: The commentary should address the following:
A9: >The main reasons for the project being undertaken (eg. demand growth)
A10: >The main reasons for material cost variances for the particular project (eg changes in material costs, legislative and regulatory requirements, environmental factors, technology changes) and whether they were forseeable.
A11: >The main reason for any material variance in commissioning date (e.g delays in supply of materials, environmental approvals etc) and whether they were forseeable.
A12: >How does the project align with the TNSP's asset management strategy/plan?
A13: >Reference to the project's assessment in the TNSP's Annual Planning Reports.
A14: >Details of management induced capex efficiencies which have reduced costs.
A15: >Major project risks and strategies undertaken to mitigate them.
A17: In addition, the TNSP is requested to provide:
A18: Commentary on reasons for variance
A19: Project (unique identifying number or name)
A21: Project
A24: Project
A26: Supporting information
A27: Please list documentation in support of reasons

Sheet Opex Instructions (hidden)
A1: OPEX - Instructions and definitions
A2: Note: These definitions are a guide only. TNSPs can adapt the definition section as necessary, given consultation with the AER.
A3: PURPOSE OF INFORMATION AND USE BY THE AER: | B3: The historic worksheets are a key input into the AER's assessment of a TNSP's historic opex performance to assist it in establishing a starting point from which to set efficient opex for the next regulatory period.
B4: The forecast worksheets are a key input into the AER's assessment of a TNSPs proposed forecast opex.
B5: Key cost drivers for expenditure are important to the AER's understanding of what has happened in the current regulatory period and any step changes in opex claimed for the next regulatory period.
A7: INSTRUCTIONS | B7: Data to be input on the basis of the definitions provided.
B8: All expenditure must relate to the provision of prescribed transmission services.
B9: Key cost drivers for expenditure: reasons for material changes in costs should be expanded upon in the relevant opex commentary proforma.
B10: Templates must be completed in accordance with the instructions contained in the AER's Submission Guidelines and Cost Allocation Guidelines.
B11: All cells must be filled out where possible, especially in relation to any commentary on variances.
A12: DEFINITIONS | B12: Asset Manager Support: those operational activities to support the strategic development and ongoing asset management of the network. Asset Management Support has 5 major sub-elements: Grid Planning, Project Support, Network Customer & Regulatory Support, IT Support, and Operational Support.
B13: Asset monitoring: the asset monitoring team performing remote monitoring of TNSP’s network.
B14: Condition based maintenance: maintenance activities based on inspection/assessment of the condition of an asset.
B15: Corporate Support : the support activities required by the TNSP in order to ensure adequate and effective corporate governance. The three aspects of corporate support are: Insurance, Corporate Support (the Board etc), and Other Support.
B16: Corrective maintenance: activities that restore a failed component to an operational state.
B17: Direct Charges: costs associated with owning and managing assets, which include council rates charges, water charges, electricity bills and permits etc.
B18: Field maintenance: includes all field activities, performed by maintenance service providers, to ensure the item of plant can perform its required functions.
B19: Field Support: field-based activities performed by maintenance service providers which are not directly related to working on an item of plant.
B20: Key cost drivers: significant factors driving expenditure such as age and condition of assets, size of network, CPI, labour costs, legislative requirements.
B21: Network Monitoring and control: includes all activities in operating and monitoring assets in the field.
B22: Network switching: the control centre function and ongoing management of the energy management system (EMS).
B23: NMS support: the telecommunications network management system (NMS).
B24: Non-network: all activities not directly related to the operation and maintenance of the network, including administrative, planning and engineering support costs.
B25: Operational refurbishment: TNSP to provide definition.
B26: Opex: expenditure related to operating and maintaining assets which is not capex.
B27: Other Support: Non field based activities associated with maintenance activities.
B28: Routine maintenance: recurrent activities undertaken to maintain assets.
B29: Support/corporate: opex that is not directly related to maintenance activities.

Sheet Historic Capex Instructions (hidden)
A1: HISTORIC CAPEX - Instructions and definitions
A2: Note: These definitions are a guide only. TNSPs can adapt the definition section as necessary, given consultation with the AER.
A3: PURPOSE OF INFORMATION AND USE BY THE AER: | B3: The templates are key inputs into the AER's assessment of historic capex and will assist in the analysis of the TNSP's forecast capex claim.
B4: Specifying expenditure by project enables the AER to select projects on which to undertake more detailed analysis.
B5: The capex categories are essentially divided between Network and Non-network. Network includes augmentation capex which is subject to the Regulatory Test.
A7: INSTRUCTIONS: | B7: Data to be input on the basis of the definitions provided.
B8: All expenditure must relate to the provision of prescribed transmission services.
B9: Categorisation of capex should be performed according to the primary reason for expenditure.
B10: Capex amounts should be entered exclusive of customer contributions.
B11: Reasons for variance: if actual expenditure materially varies from the amount determined under the Regulatory Test/Business case, or the date of commissioning was later than planned, then reasons should be given on the Historic Capex Commentary pro forma with a brief reference in the 'Reasons for variance' column of HOE Netw and HOE Non Netw.
B12: Templates must be completed according to the instructions contained in the AER's Submission Guidelines.
B13: All cells must be filled out where possible, especially in relation to any commentary on variances.
A14: DEFINITIONS: | B14: Augmentation: are as defined under the National Electricity Rules (NER) as works to enlarge a network or to increase the capability of a network to transmit (or distribute) active energy.
B15: Business case: a detailed cost/benefit analysis undertaken to support an investment.
B16: Capex: expenditure that satisfies one or more of the following requirements - relates to the purchase or construction of a new asset; increases the functionality of the asset; or extends the service life of the asset.
B17: Connections: changes to connections between the transmission and distribution networks.
B18: Easements: land acquisitions and rights of way for transmission lines.
B19: FDC: financing during construction - finance charges up to the point of completion of the project.
B20: IT: Business IT expenditure.
B21: Other (Load Driven): anything else driven by increasing load.
B22: Other (Non-Load Driven): all other projects associated with the network which provides prescribed transmission services such as communications systems enhancements.
B23: Project ID: A unique numerical identifier for a given project
B24: Project Description: A short description of the project
B25: Regulatory Test: the test as promulgated by the ACCC to assess augmentation expenditure. A prudency test must be applied to other capex undertaken in the current regulatory period.
B26: Replacements: replacement or life extension of network assets.
B27: Security/Compliance: projects undertaken to ensure the physical security of assets and compliance with amendments to various technical, safety or environmental legislation.
B28: Support the business: non-network capex relating to commercial buildings, motor vehicles and tools (but excluding IT).
